fUSD/lending_fUSD_20241022
["ID","MTS","AMOUNT","RATE_DAILY","PERIOD"]
[340670139,1729631444806,-151.0,0.00049836,120]
[340670141,1729631444816,-306.576903,0.00049836,120]
[340670143,1729631444826,-151.0,0.00049836,30]
[340670145,1729631444835,-306.576903,0.00049836,120]
[340670147,1729631444845,-1413.49248,0.00049836,120]
[340670149,1729631444854,-1413.49248,0.00049836,120]
[340670151,1729631444864,-164.759615,0.00049836,120]
[340670153,1729631444873,-151.0,0.00049836,120]
[340670155,1729631444882,-151.0,0.00049836,120]
[340670157,1729631444892,-151.0,0.00049836,120]
[340670159,1729631444902,-151.0,0.00049836,120]
[340670161,1729631444911,-151.0,0.00049836,120]
[340670163,1729631444921,-151.0,0.00049836,120]
[340670165,1729631444931,-151.0,0.00049836,120]
[340670167,1729631444940,-12176.6025676,0.00049846,10]
[340670169,1729631444950,-152.117207,0.00049846,120]
[340670171,1729631444960,-151.0,0.00049846,7]
[340670173,1729631444968,-151.0,0.00049846,120]
[340670175,1729631444977,-151.0,0.00049846,120]
[340670177,1729631444987,-151.0,0.00049846,120]
[340670179,1729631444996,-151.0,0.00049846,120]
[340670181,1729631445005,-224.179169,0.00049846,120]
[340670183,1729631445014,-224.179169,0.00049846,120]
[340670185,1729631445023,-202.461524,0.00049846,120]
[340670187,1729631445033,-202.461524,0.00049846,120]
[340670189,1729631445042,-151.0,0.00049846,120]
[340670191,1729631445051,-151.0,0.00049856,120]
[340670192,1729631445061,-151.0,0.00049856,120]
[340670195,1729631445071,-151.0,0.00049856,120]
[340670197,1729631445081,-151.0,0.00049856,120]
[340670199,1729631445091,-151.0,0.00049856,120]
[340670200,1729631445100,-151.0,0.00049856,120]
[340670202,1729631445111,-151.0,0.00049856,120]
[340670204,1729631445120,-151.0,0.00049856,120]
[340670206,1729631445132,-151.0,0.00049856,120]
[340670208,1729631445142,-306.576903,0.00049856,120]
[340670210,1729631445152,-151.0,0.00049856,30]
[340670212,1729631445161,-306.576903,0.00049856,120]
[340670214,1729631445171,-1413.49248,0.00049856,120]
[340670216,1729631445182,-1413.49248,0.00049856,120]
[340670218,1729631445191,-164.759615,0.00049856,120]
[340670220,1729631445202,-307.161533,0.00049856,120]
[340670222,1729631445212,-307.161533,0.00049856,120]
[340670224,1729631445221,-504.260752,0.00049856,120]
[340670226,1729631445232,-504.260752,0.00049856,120]
[340670228,1729631445241,-442.347369,0.00049856,120]
[340670230,1729631445253,-442.347369,0.00049856,120]
[340670232,1729631445263,-159.88798,0.00049856,120]
[340670234,1729631445272,-159.88798,0.00049856,120]
[340670236,1729631445281,-370.022236,0.00049856,120]
[340670238,1729631445291,-370.022236,0.00049856,120]
[340670240,1729631445301,-246.17677,0.00049856,120]
[340670242,1729631445311,-246.17677,0.00049856,120]
[340670244,1729631445321,-486.69816,0.00049856,120]
[340670246,1729631445331,-486.69816,0.00049856,120]
[340670248,1729631445340,-151.0,0.00049856,120]
[340670250,1729631445351,-151.0,0.00049856,120]
[340670252,1729631445360,-150.0,0.000499,120]
[340670254,1729631445371,-204.10392,0.000499,120]
[340670256,1729631445382,-12176.6025676,0.00049926,10]
[340670258,1729631445393,-36529.8077029,0.00049936,10]
[340670262,1729631445541,-151.728758,0.00049936,120]
[340670263,1729631445551,-151.0,0.00049936,120]
[340670264,1729631445561,-258.276706,0.00049936,120]
[340670265,1729631445571,-258.276706,0.00049936,120]
[340670266,1729631445581,-370.355628,0.00049936,120]
[340670267,1729631445591,-370.355628,0.00049936,120]
[340670268,1729631445601,-609.650926,0.00049936,120]
[340670269,1729631445611,-609.650926,0.00049936,120]
[340670270,1729631445621,-151.0,0.00049945,7]
[340670271,1729631445631,-151.0,0.00049945,120]
[340670272,1729631445642,-151.0,0.00049945,120]
[340670273,1729631445651,-151.0,0.00049945,120]
[340670274,1729631445662,-151.0,0.00049945,120]
[340670275,1729631445673,-151.0,0.00049945,120]
[340670276,1729631445683,-151.0,0.00049945,120]
[340670277,1729631445693,-151.0,0.00049945,120]
[340670278,1729631445703,-36529.8077029,0.00049945,10]
[340670279,1729631445713,-12176.6025676,0.00049946,10]
[340670280,1729631445722,-151.0,0.00049946,120]
[340670281,1729631445732,-151.0,0.00049946,120]
[340670282,1729631445742,-209.350985,0.00049946,120]
[340670283,1729631445752,-209.350985,0.00049946,120]
[340670284,1729631445761,-151.0,0.00049946,120]
[340670285,1729631445771,-243.605933,0.00049946,120]
[340670286,1729631445781,-151.0,0.00049946,120]
[340670287,1729631445791,-12176.6025676,0.00049946,10]
[340670288,1729631445800,-151.0,0.00049955,120]
[340670289,1729631445810,-306.576903,0.00049955,120]
[340670290,1729631445820,-151.0,0.00049955,30]
[340670291,1729631445829,-306.576903,0.00049955,120]
[340670292,1729631445839,-1413.49248,0.00049955,120]
[340670293,1729631445849,-1413.49248,0.00049955,120]
[340670294,1729631445859,-164.759615,0.00049955,120]
[340670295,1729631445869,-1921.8277784,0.00049955,2]
[340670296,1729631445879,-52224.8171758,0.00049955,2]
[340670297,1729631445889,-246.17677,0.00049955,120]
[340670298,1729631445899,-246.17677,0.00049955,120]
[340670299,1729631445908,-486.69816,0.00049955,120]
[340670300,1729631445918,-486.69816,0.00049955,120]
[340670301,1729631445929,-151.0,0.00049956,7]
[340670302,1729631445939,-200.044108,0.00049956,120]
[340670303,1729631445949,-151.0,0.00049956,120]
[340670304,1729631445959,-153.162894,0.00049956,120]
[340670305,1729631445969,-234.109109,0.00049956,120]
[340670306,1729631445979,-191.079679,0.00049956,120]
[340670307,1729631445988,-151.0,0.00049956,120]
[340670308,1729631445998,-245.468131,0.00049956,120]
[340670309,1729631446008,-151.0,0.00049956,120]
[340670310,1729631446018,-151.0,0.00049956,120]
[340670311,1729631446028,-151.0,0.00049956,120]
[340670312,1729631446037,-231.307985,0.00049956,120]
[340670313,1729631446047,-151.0,0.00049956,120]
[340670314,1729631446057,-159.88798,0.00049956,120]
[340670315,1729631446067,-159.88798,0.00049956,120]
[340670316,1729631446076,-224.179169,0.00049956,120]
[340670317,1729631446086,-224.179169,0.00049956,120]
[340670318,1729631446095,-202.461524,0.00049956,120]
[340670319,1729631446104,-202.461524,0.00049956,120]
[340670320,1729631446114,-1086.944274,0.00049956,2]
[340670321,1729631446123,-258.276706,0.00049956,120]
[340670322,1729631446133,-258.276706,0.00049956,120]
[340670323,1729631446143,-370.022236,0.00049956,120]
[340670324,1729631446154,-370.022236,0.00049956,120]
[340670325,1729631446163,-9952.2401949,0.00049956,2]
[340670326,1729631446172,-370.355628,0.00049956,120]
[340670327,1729631446182,-370.355628,0.00049956,120]
[340670328,1729631446192,-297.434898,0.00049956,120]
[340670329,1729631446201,-609.650926,0.00049956,120]
[340670330,1729631446210,-609.650926,0.00049956,120]
[340670331,1729631446219,-209.350985,0.00049956,120]
[340670332,1729631446229,-209.350985,0.00049956,120]
[340670333,1729631446238,-151.0,0.00049956,120]
[340670335,1729631446249,-210.932246,0.00049959,120]
[340670337,1729631446265,-210.932246,0.00049959,120]
[340670339,1729631446274,-12176.6025676,0.0004996,10]
[340670341,1729631446283,-151.0,0.00049966,120]
[340670343,1729631446293,-151.0,0.00049966,120]
[340670345,1729631446303,-307.161533,0.00049966,120]
[340670347,1729631446312,-307.161533,0.00049966,120]
[340670349,1729631446321,-504.260752,0.00049966,120]
[340670351,1729631446332,-504.260752,0.00049966,120]
[340670353,1729631446341,-442.347369,0.00049966,120]
[340670355,1729631446350,-442.347369,0.00049966,120]
[340670357,1729631446360,-231.19806759,0.00049966,30]
[340670359,1729631446369,-151.0,0.0004997,120]
[340670361,1729631446378,-151.0,0.0004997,120]
[340670363,1729631446389,-210.932246,0.00049979,120]
[340670365,1729631446398,-210.932246,0.00049979,120]
[340670367,1729631446407,-370.022236,0.00049979,120]
[340670369,1729631446417,-370.022236,0.00049979,120]
[340670371,1729631446426,-151.0,0.00049979,120]
[340670373,1729631446435,-24353.2051352,0.0004998,10]
[340670375,1729631446444,-12176.6025676,0.0004998,10]
[340670377,1729631446454,-12176.6025676,0.0004999,10]
[340670378,1729631446463,-210.932246,0.0004999,120]
[340670380,1729631446472,-210.932246,0.0004999,120]
[340670382,1729631446482,-151.0,0.0004999,120]
[340670384,1729631446491,-151.0,0.0004999,120]
[340670386,1729631446500,-151.0,0.0004999,120]
[340670389,1729631446510,-151.0,0.0004999,120]
[340670391,1729631446523,-151.0,0.0004999,120]
[340670393,1729631446532,-151.0,0.0004999,120]
[340670395,1729631446542,-151.0,0.0004999,120]
[340670397,1729631446553,-151.0,0.0004999,120]
[340670399,1729631446562,-151.0,0.0004999,120]
[340670401,1729631446572,-155.111333,0.0004999,120]
[340670403,1729631446582,-151.0,0.0004999,120]
[340670405,1729631446592,-151.0,0.0004999,120]
[340670407,1729631446603,-151.0,0.0004999,120]
[340670409,1729631446612,-151.0,0.0004999,120]
[340670411,1729631446622,-258.276706,0.0004999,120]
[340670413,1729631446632,-258.276706,0.0004999,120]
[340670415,1729631446642,-370.355628,0.0004999,120]
[340670417,1729631446651,-370.355628,0.0004999,120]
[340670419,1729631446661,-609.650926,0.0004999,120]
[340670421,1729631446670,-609.650926,0.0004999,120]
[340670423,1729631446679,-246.17677,0.0004999,120]
[340670425,1729631446689,-246.17677,0.0004999,120]
[340670427,1729631446698,-486.69816,0.0004999,120]
[340670429,1729631446708,-486.69816,0.0004999,120]
[340670431,1729631446718,-200.0,0.00049999,30]
[340670433,1729631446727,-500.0,0.00049999,31]
[340670435,1729631446736,-433.62649426,0.00049999,31]
[340670436,1729631446746,-50000.0,0.0005,50]
[340670438,1729631446755,-31773.88989708,0.0005,60]
[340670475,1729631447289,-363.60613795,0.0005,60]
[340670477,1729631447301,-10441.17998013,0.0005,60]
[340670479,1729631447313,-7421.32398484,0.0005,60]
[340670481,1729631447322,-4407.75958832,0.0005,30]
[340670484,1729631447331,-151.0,0.0005,120]
[340670485,1729631447340,-2593.70201793,0.0005,5]
[340670486,1729631447349,-1124.75356395,0.0005,2]
[340670487,1729631447359,-2279.0,0.0005,5]
[340670488,1729631447368,-210.932246,0.0005,120]
[340670489,1729631447377,-210.932246,0.0005,120]
[340670490,1729631447386,-6160.0,0.0005,10]
[340670491,1729631447396,-151.0,0.0005,120]
[340670492,1729631447405,-151.0,0.0005,120]
[340670493,1729631447414,-151.0,0.0005,120]
[340670494,1729631447424,-151.0,0.0005,120]
[340670495,1729631447433,-151.0,0.0005,120]
[340670496,1729631447442,-306.576903,0.0005,120]
[340670497,1729631447451,-151.0,0.0005,30]
[340670498,1729631447460,-306.576903,0.0005,120]
[340670499,1729631447470,-1413.49248,0.0005,120]
[340670500,1729631447479,-1413.49248,0.0005,120]
[340670501,1729631447487,-164.759615,0.0005,120]
[340670502,1729631447497,-151.0,0.0005,120]
[340670503,1729631447506,-151.0,0.0005,120]
[340670504,1729631447515,-151.0,0.0005,120]
[340670505,1729631447524,-151.0,0.0005,120]
[340670506,1729631447534,-307.161533,0.0005,120]
[340670507,1729631447543,-307.161533,0.0005,120]
[340670508,1729631447553,-504.260752,0.0005,120]
[340670509,1729631447562,-504.260752,0.0005,120]
[340670510,1729631447571,-2262.289396,0.0005,120]
[340670511,1729631447581,-442.347369,0.0005,120]
[340670512,1729631447590,-442.347369,0.0005,120]
[340670513,1729631447600,-151.0,0.0005,120]
[340670514,1729631447609,-159.88798,0.0005,120]
[340670515,1729631447619,-159.88798,0.0005,120]
[340670516,1729631447629,-224.179169,0.0005,120]
[340670517,1729631447639,-224.179169,0.0005,120]
[340670518,1729631447649,-202.461524,0.0005,120]
[340670519,1729631447670,-202.461524,0.0005,120]
[340670520,1729631447685,-258.276706,0.0005,120]
[340670521,1729631447703,-258.276706,0.0005,120]
[340670522,1729631447723,-370.022236,0.0005,120]
[340670523,1729631447742,-370.022236,0.0005,120]
[340670524,1729631447756,-370.355628,0.0005,120]
[340670525,1729631447774,-370.355628,0.0005,120]
[340670526,1729631447788,-609.650926,0.0005,120]
[340670527,1729631447805,-609.650926,0.0005,120]
[340670528,1729631447825,-246.17677,0.0005,120]
[340670529,1729631447839,-246.17677,0.0005,120]
[340670530,1729631447853,-486.69816,0.0005,120]
[340670531,1729631447871,-486.69816,0.0005,120]
[340670532,1729631447887,-209.350985,0.0005,120]
[340670533,1729631447902,-209.350985,0.0005,120]
[340670534,1729631447916,-151.0,0.0005,120]
[340670535,1729631447933,-151.0,0.0005,120]
[340670536,1729631447948,-150.62,0.00050142,120]
[340670537,1729631447962,-150.102305,0.00050498,120]
[340670538,1729631447977,-159.11,0.00050554,120]
[340670539,1729631447991,-1335.92008353,0.00050575,30]
[340670540,1729631448007,-152.30230482,0.00050799,39]
[340670541,1729631448021,-210.932246,0.00050955,120]
[340670542,1729631448036,-210.932246,0.00050955,120]
[340670543,1729631448050,-151.0,0.0005099,120]
[340670544,1729631448065,-306.576903,0.0005099,120]
[340670545,1729631448080,-151.0,0.0005099,30]
[340670546,1729631448095,-306.576903,0.0005099,120]
[340670547,1729631448109,-1413.49248,0.0005099,120]
[340670548,1729631448124,-1413.49248,0.0005099,120]
[340670549,1729631448139,-164.759615,0.0005099,120]
[340670550,1729631448154,-307.161533,0.0005099,120]
[340670551,1729631448169,-307.161533,0.0005099,120]
[340670552,1729631448184,-504.260752,0.0005099,120]
[340670553,1729631448199,-504.260752,0.0005099,120]
[340670554,1729631448214,-2262.289396,0.0005099,120]
[340670555,1729631448230,-442.347369,0.0005099,120]
[340670556,1729631448244,-442.347369,0.0005099,120]
[340670557,1729631448262,-159.88798,0.0005099,120]
[340670558,1729631448276,-159.88798,0.0005099,120]
[340670559,1729631448290,-224.179169,0.0005099,120]
[340670560,1729631448306,-224.179169,0.0005099,120]
[340670561,1729631448321,-202.461524,0.0005099,120]
[340670562,1729631448337,-202.461524,0.0005099,120]
[340670563,1729631448352,-370.022236,0.0005099,120]
[340670564,1729631448367,-370.022236,0.0005099,120]
[340670565,1729631448381,-50000.0,0.00051,51]
[340670566,1729631448397,-50000.0,0.00051,61]
[340670567,1729631448412,-210.932246,0.00051,120]
[340670568,1729631448427,-210.932246,0.00051,120]
[340670569,1729631448442,-151.0,0.00051,120]
[340670570,1729631448458,-151.0,0.00051,120]
[340670571,1729631448472,-151.0,0.00051,120]
[340670572,1729631448487,-296.069236,0.00051,120]
[340670573,1729631448502,-151.0,0.00051,120]
[340670574,1729631448517,-151.0,0.00051,120]
[340670575,1729631448532,-242.251298,0.00051,120]
[340670576,1729631448546,-151.0,0.00051,120]
[340670577,1729631448561,-266.975762,0.00051,120]
[340670578,1729631448576,-258.276706,0.00051,120]
[340670579,1729631448590,-258.276706,0.00051,120]
[340670580,1729631448605,-370.355628,0.00051,120]
[340670581,1729631448620,-370.355628,0.00051,120]
[340670582,1729631448636,-609.650926,0.00051,120]
[340670583,1729631448652,-609.650926,0.00051,120]
[340670584,1729631448666,-246.17677,0.00051,120]
[340670585,1729631448682,-246.17677,0.00051,120]
[340670586,1729631448697,-486.69816,0.00051,120]
[340670587,1729631448712,-486.69816,0.00051,120]
[340670588,1729631448727,-209.350985,0.00051,120]
[340670589,1729631448741,-209.350985,0.00051,120]
[340670590,1729631448757,-151.0,0.00051,120]
[340670591,1729631448769,-151.0,0.00051,120]
[340670592,1729631448778,-151.0,0.00051041,120]
[340670593,1729631448788,-306.576903,0.00051041,120]
[340670594,1729631448797,-257.993507,0.00051041,30]
[340670595,1729631448806,-306.576903,0.00051041,120]
[340670596,1729631448815,-1413.49248,0.00051041,120]
[340670597,1729631448824,-1413.49248,0.00051041,120]
[340670598,1729631448833,-164.759615,0.00051041,120]
[340670599,1729631448843,-307.161533,0.00051041,120]
[340670600,1729631448852,-307.161533,0.00051041,120]
[340670601,1729631448861,-504.260752,0.00051041,120]
[340670602,1729631449148,-504.260752,0.00051041,120]
[340670603,1729631449166,-2262.289396,0.00051041,120]
[340670604,1729631449176,-442.347369,0.00051041,120]
[340670605,1729631449186,-442.347369,0.00051041,120]
[340670606,1729631449195,-159.88798,0.00051041,120]
[340670607,1729631449205,-159.88798,0.00051041,120]
[340670608,1729631449214,-224.179169,0.00051041,120]
[340670609,1729631449224,-224.179169,0.00051041,120]
[340670610,1729631449233,-202.461524,0.00051041,120]
[340670611,1729631449242,-202.461524,0.00051041,120]
[340670612,1729631449253,-370.022236,0.00051041,120]
[340670613,1729631449263,-370.022246,0.00051041,120]
[340670614,1729631449272,-151.0,0.00051041,120]
[340670615,1729631449282,-257.87,0.00051165,2]
[340670616,1729631449291,-204.19527036,0.00051485,28]
[340670617,1729631449301,-150.102305,0.00051498,120]
[340670618,1729631449310,-493.42266931,0.000515,2]
[340670619,1729631449320,-158.51714257,0.00051777,28]
[340670620,1729631449329,-163.102305,0.00051798,120]
[340670621,1729631449340,-231.15589,0.000518,120]
[340670622,1729631449349,-2354.39,0.000519,120]
[340670623,1729631449358,-210.932246,0.00051954,120]
[340670624,1729631449367,-210.932245,0.00051954,120]
[340670625,1729631449377,-50000.0,0.00052,52]
[340670626,1729631449386,-50000.0,0.00052,62]
[340670627,1729631449397,-151.0,0.00052,120]
[340670628,1729631449406,-151.0,0.00052,120]
[340670629,1729631449416,-151.0,0.00052,120]
[340670630,1729631449426,-151.0,0.00052,120]
[340670631,1729631449436,-306.576903,0.00052,120]
[340670632,1729631449446,-306.576903,0.00052,120]
[340670633,1729631449455,-1413.49248,0.00052,120]
[340670634,1729631449464,-1413.49248,0.00052,120]
[340670635,1729631449474,-164.759615,0.00052,120]
[340670636,1729631449483,-151.0,0.00052,120]
[340670637,1729631449492,-151.0,0.00052,120]
[340670638,1729631449502,-151.0,0.00052,120]
[340670639,1729631449511,-307.161533,0.00052,120]
[340670640,1729631449521,-307.161542,0.00052,120]
[340670641,1729631449530,-504.260752,0.00052,120]
[340670642,1729631449539,-504.26076,0.00052,120]
[340670643,1729631449549,-2262.289388,0.00052,120]
[340670644,1729631449559,-442.347369,0.00052,120]
[340670645,1729631449568,-442.34737,0.00052,120]
[340670646,1729631449578,-159.88798,0.00052,120]
[340670647,1729631449587,-159.88798,0.00052,120]
[340670648,1729631449596,-224.179169,0.00052,120]
[340670649,1729631449606,-224.179163,0.00052,120]
[340670650,1729631449615,-202.461524,0.00052,120]
[340670651,1729631449625,-202.461515,0.00052,120]
[340670652,1729631449634,-258.276706,0.00052,120]
[340670653,1729631449645,-258.276702,0.00052,120]
[340670654,1729631449655,-370.355628,0.00052,120]
[340670655,1729631449664,-370.355619,0.00052,120]
[340670656,1729631449674,-609.650926,0.00052,120]
[340670657,1729631449683,-246.17677,0.00052,120]
[340670658,1729631449693,-609.650924,0.00052,120]
[340670659,1729631449703,-246.176776,0.00052,120]
[340670660,1729631449712,-486.69816,0.00052,120]
[340670661,1729631449721,-486.69816,0.00052,120]
[340670662,1729631449731,-209.350985,0.00052,120]
[340670663,1729631449740,-209.350985,0.00052,120]
[340670664,1729631449750,-151.0,0.00052,120]
[340670665,1729631449759,-151.0,0.00052055,120]
[340670666,1729631449769,-151.0,0.00052055,120]
[340670667,1729631449778,-151.0,0.00052055,120]
[340670668,1729631449787,-151.0,0.00052055,120]
[340670669,1729631449796,-800.0,0.00052078,120]
[340670670,1729631449806,-218.89,0.000521,51]
[340670671,1729631449815,-218.89,0.000521,51]
[340670672,1729631449824,-218.89,0.000521,51]
[340670673,1729631449833,-218.89,0.000521,51]
[340670674,1729631449843,-218.89,0.000521,51]
[340670675,1729631449852,-218.89,0.000521,51]
[340670676,1729631449861,-218.89,0.000521,51]
[340670677,1729631449870,-218.89,0.000521,51]
[340670678,1729631449880,-218.89,0.000521,51]
[340670679,1729631449889,-218.89,0.000521,51]
[340670680,1729631449899,-218.89,0.000521,51]
[340670681,1729631449908,-218.89,0.000521,51]
[340670682,1729631449917,-218.89,0.000521,51]
[340670683,1729631449928,-218.89,0.000521,51]
[340670684,1729631449938,-218.89,0.000521,51]
[340670685,1729631449948,-218.89,0.000521,51]
[340670686,1729631449958,-218.89,0.000521,51]
[340670687,1729631449968,-218.89,0.000521,51]
[340670688,1729631449979,-218.89,0.000521,51]
[340670689,1729631449989,-218.89,0.000521,51]
[340670690,1729631449998,-218.89,0.000521,51]
[340670691,1729631450007,-218.89,0.000521,51]
[340670692,1729631450017,-218.89,0.000521,51]
[340670693,1729631450026,-218.89,0.000521,51]
[340670694,1729631450036,-158.84,0.00052271,120]
[340670695,1729631450045,-151.0,0.00052356,120]
[340670696,1729631450055,-150.102305,0.00052498,120]
[340670697,1729631450064,-50000.0,0.00053,53]
[340670698,1729631450073,-50000.0,0.00053,63]
[340670699,1729631450082,-570.42128007,0.00053,2]
[340670700,1729631450092,-151.0,0.00053,120]
[340670701,1729631450102,-209.350985,0.00053,120]
[340670702,1729631450110,-209.350984,0.00053,120]
[340670703,1729631450119,-151.0,0.00053,120]
[340670704,1729631450129,-306.576903,0.00053233,120]
[340670705,1729631450139,-306.576905,0.00053233,120]
[340670706,1729631450149,-1413.49248,0.00053233,120]
[340670707,1729631450158,-1413.492482,0.00053233,120]
[340670708,1729631450171,-164.759617,0.00053233,120]
[340670709,1729631450180,-442.16005437,0.0005331,2]
[340670710,1729631450190,-257.87,0.00053429,2]
[340670711,1729631450199,-150.102305,0.00053498,120]
[340670712,1729631450210,-150.0,0.0005356,120]
[340670713,1729631450219,-151.0,0.00053671,120]
[340670714,1729631450229,-462.577,0.00053743,100]
[340670715,1729631450239,-168.1,0.00053756,2]
[340670716,1729631450249,-5414.07965102,0.00053768,120]
[340670717,1729631450263,-152.52921178,0.0005378,120]
[340670718,1729631450272,-812.71080998,0.0005378,11]
[340670719,1729631450281,-5926.33317338,0.0005378,2]
[340670720,1729631450290,-158.51714257,0.00053808,31]
[340670721,1729631450303,-1921.8277784,0.00053843,2]
[340670722,1729631450312,-1921.8277784,0.00053843,2]
[340670723,1729631450323,-39647.308126,0.00053843,2]
[340670724,1729631450335,-27069.7990763,0.00053843,2]
[340670725,1729631450345,-1086.944274,0.00053843,2]
[340670726,1729631450356,-1086.944274,0.00053843,2]
[340670727,1729631450367,-7555.4028695,0.00053843,2]
[340670728,1729631450377,-5158.5655442,0.00053843,2]
[340670729,1729631450387,-21889.28299983,0.0005388,2]
[340670730,1729631450400,-1048.27995446,0.0005388,2]
[340670731,1729631450411,-3487.44358524,0.0005388,2]
[340670732,1729631450423,-1517.50982453,0.0005388,2]
[340670733,1729631450434,-6218.1991,0.0005388,2]
[340670734,1729631450445,-24279.6150359,0.0005388,2]
[340670735,1729631450458,-8377.37472306,0.0005388,2]
[340670736,1729631450470,-2300.18088363,0.0005388,2]
[340670737,1729631450483,-315.03065822,0.0005388,2]
[340670738,1729631450494,-334192.86749545,0.0005388,2]
[340670739,1729631450505,-6904.82972179,0.0005388,2]
[340670740,1729631450516,-2637.7671035,0.0005388,2]
[340670741,1729631450528,-3742.70217563,0.0005388,2]
[340670742,1729631450539,-3384.54958599,0.0005388,2]
[340670743,1729631450550,-511865.34255531,0.0005388,2]
[340670744,1729631450561,-36865.90328036,0.0005388,2]
[340670745,1729631450572,-280.407,0.0005388,2]
[340670746,1729631450583,-6821.84844121,0.0005388,2]
[340670747,1729631450594,-901.71984,0.0005388,2]
[340670748,1729631450618,-1007.36218342,0.00042678,15]
[340670749,1729631450629,-1001.87255975,0.00042678,15]
[340670750,1729631450876,-12075.10203218,0.00042678,15]
[340670751,1729631450887,-55480.30923606,0.0005388,2]
[340670752,1729631450899,-8395.71256963,0.0005388,2]
[340670753,1729631450911,-7717.454385,0.0005388,2]
[340670754,1729631450921,-270.59,0.0005388,2]
[340670755,1729631450933,-1079.390001,0.0005388,2]
[340670756,1729631450945,-652.75909744,0.0005388,2]
[340670757,1729631450956,-505.32356458,0.0005388,2]
[340670758,1729631450968,-560.58454009,0.0005388,2]
[340670759,1729631450986,-19870.59164846,0.0005388,2]
[340670760,1729631450997,-4130.24694756,0.0005388,2]
[340670761,1729631451012,-2037.33,0.0005388,2]
[340670762,1729631451023,-93949.24311446,0.0005388,2]
[340670763,1729631451034,-1819.99999776,0.0005388,2]
[340670764,1729631451045,-328.47396994,0.0005388,2]
[340670765,1729631451056,-2419.78327386,0.0005388,2]
[340670766,1729631451067,-1226.66149548,0.0005388,2]
[340670767,1729631451078,-88746.89330152,0.0005388,2]
[340670768,1729631451089,-588.950825,0.0005388,2]
[340670769,1729631451785,-260379.58570169,0.0005388,2]
[340670770,1729631451875,-1763.73999992,0.0005388,2]
[340670771,1729631451886,-523.7012728,0.0005388,2]
[340670772,1729631451898,-2057.40136759,0.0005388,2]
[340670773,1729631451909,-315.59120461,0.0005388,2]
[340670774,1729631452271,-306.0,0.0004361,7]
[340670775,1729631452281,-341.46735558,0.00046567,15]
[340670776,1729631452308,-13742.86941977,0.00046567,15]
[340670777,1729631452318,-43417.32454556,0.0005388,2]
[340670778,1729631452329,-16586.96867989,0.0005388,2]
[340670779,1729631452340,-17129.93354523,0.0005388,2]
[340670780,1729631452349,-5294.22016947,0.0005388,2]
[340670781,1729631452361,-1045.14,0.0005388,2]
[340670782,1729631452372,-475.49258699,0.0005388,2]
[340670783,1729631452383,-302.23,0.0005388,2]
[340670784,1729631452394,-300.1,0.0005388,2]
[340670785,1729631452405,-307.38558639,0.0005388,2]
[340670786,1729631452416,-274.264,0.0005388,2]
[340670787,1729631452428,-309.865,0.0005388,2]
[340670788,1729631452923,-432.72,0.00035006,10]
[340670789,1729631452934,-426.00211708,0.0005388,2]
[340670790,1729631452947,-1195.57080635,0.0005388,2]
[340670791,1729631452960,-6839.33735978,0.0005388,2]
[340670792,1729631452990,-11109.32703134,0.0005388,2]
[340670793,1729631453011,-54639.28484947,0.0005388,2]